[Event "Schachfestival GM 2018"]
[Site "Lueneburg"]
[Date "2018.07.05"]
[Round "1"]
[White "Lubbe, Nikolas"]
[Black "Vorobiov, Evgeny E"]
[Result "0-1"]
[ECO "D70"]
[WhiteElo "2463"]
[BlackElo "2564"]
[Annotator "ChessBase"]
[PlyCount "80"]
[EventDate "2018.07.05"]
[EventType "tourn"]
[EventCountry "GER"]
[SourceTitle "playchess.com"]
[Source "ChessBase"]
[SourceQuality "1"]
[TimeControl "40/5400+30:1800+30"]

1. d4 {[%emt 0:00:00]} Nf6 {[%emt 0:00:00]} 2. c4 {[%emt 0:00:00]} g6 {[%emt 0:01:08]} 3. Nf3 {[%emt 0:00:30]} Bg7 {[%emt 0:00:07]} 4. g3 {[%emt 0:00:44]} c5 {[%emt 0:02:37]} 5. d5 {[%emt 0:03:35]} b5 {[%emt 0:00:43]} 6. Nc3 {[%emt 0:14:02]} b4 {[%emt 0:07:40]} 7. Nb1 {[%emt 0:07:51]} d6 {[%emt 0:01:06]} 8. Nbd2 {[%emt 0:02:00]} O-O {[%emt 0:01:02]} 9. Bg2 {[%emt 0:02:49]} a5 {[%emt 0:01:08]} 10. a3 {[%emt 0:03:49]} Na6 {[%emt 0:05:08]} 11. O-O {[%emt 0:01:34]} bxa3 {[%emt 0:04:15]} 12. Rxa3 {[%emt 0:00:57]} Nb4 {[%emt 0:00:11]} 13. Ne1 {[%emt 0:05:03]} Nd7 {[%emt 0:02:29]} 14. f4 {[%emt 0:10:26]} Nb6 {[%emt 0:05:01]} 15. e4 {[%emt 0:04:32]} e6 {[%emt 0:06:19]} 16. dxe6 {[%emt 0:09:22]} Bxe6 {[%emt 0:00:49]} 17. Qe2 {[%emt 0:02:57]} Re8 {[%emt 0:01:43]} 18. g4 {[%emt 0:03:09]} Ra7 {[%emt 0:04:49]} 19. f5 {[%emt 0:01:54]} Bc8 {[%emt 0:01:24]} 20. Qf3 {[%emt 0:01:48]} Nc6 {[%emt 0:08:46]} 21. Nd3 {[%emt 0:04:49]} Qh4 {[%emt 0:05:54]} 22. Qd1 {[%emt 0:03:21]} Qd8 {[%emt 0:08:05]} 23. b3 {[%emt 0:03:01]} Bb7 {[%emt 0:10:10]} 24. Bb2 {[%emt 0:04:08]} Bxb2 {[%emt 0:02:37]} 25. Nxb2 {[%emt 0:00:01]} Qg5 {[%emt 0:03:12]} 26. Nd3 {[%emt 0:01:19]} Qe3+ {[%emt 0:06:10]} 27. Nf2 {[%emt 0:00:02]} Ne5 {[%emt 0:00:49]} 28. Nb1 {[%emt 0:01:02]} Rd8 {[%emt 0:04:33]} 29. Re1 {[%emt 0:01:39]} Qg5 {[%emt 0:00:53]} 30. Nc3 {[%emt 0:01:23]} Bc6 {[%emt 0:00:11]} 31. Ra2 {[%emt 0:01:19]} a4 {[%emt 0:00:48]} 32. Nd5 {[%emt 0:02:26]} Bxd5 {[%emt 0:04:15]} 33. exd5 {[%emt 0:00:02]} Kf8 {[%emt 0:01:02]} 34. fxg6 {[%emt 0:03:21]} hxg6 {[%emt 0:00:55]} 35. h3 {[%emt 0:00:26]} Re7 {[%emt 0:00:30]} 36. Ne4 {[%emt 0:00:59]} Qh4 {[%emt 0:00:14]} 37. bxa4 {[%emt 0:01:00]} Nbxc4 {[%emt 0:00:08]} 38. a5 {[%emt 0:00:48]} f5 {[%emt 0:00:21]} 39. Rf2 {[%emt 0:00:26]} Rf7 {[%emt 0:00:43]} 40. Nd2 {[%emt 0:00:50]} Nb2 {[%emt 0:01:27]} 0-1

[Event "Schachfestival GM 2018"]
[Site "Lueneburg"]
[Date "2018.07.05"]
[Round "1"]
[White "Reuker, Jari"]
[Black "Drozdowski, Kacper"]
[Result "1/2-1/2"]
[ECO "B41"]
[WhiteElo "2377"]
[BlackElo "2455"]
[Annotator "ChessBase"]
[PlyCount "141"]
[EventDate "2018.07.05"]
[EventType "tourn"]
[EventCountry "GER"]
[SourceTitle "playchess.com"]
[Source "ChessBase"]
[SourceQuality "1"]
[TimeControl "40/5400+30:1800+30"]

1. e4 {[%emt 0:00:00]} c5 {[%emt 0:00:00]} 2. Nf3 {[%emt 0:00:00]} e6 {[%emt 0:00:00]} 3. d4 {[%emt 0:00:00]} cxd4 {[%emt 0:00:00]} 4. Nxd4 {[%emt 0:00:00]} a6 {[%emt 0:00:00]} 5. c4 {[%emt 0:00:00]} Nf6 {[%emt 0:00:19]} 6. Nc3 {[%emt 0:00:11]} Qc7 {[%emt 0:00:22]} 7. Be2 {[%emt 0:00:22]} Bb4 {[%emt 0:04:16]} 8. Nc2 {[%emt 0:05:34]} Be7 {[%emt 0:00:13]} 9. Qd3 {[%emt 0:02:58]} O-O {[%emt 0:11:26]} 10. O-O {[%emt 0:01:00]} d6 {[%emt 0:03:19]} 11. f4 {[%emt 0:01:05]} Nbd7 {[%emt 0:00:21]} 12. b4 {[%emt 0:01:58]} b6 {[%emt 0:03:35]} 13. Bb2 {[%emt 0:00:42]} Bb7 {[%emt 0:00:56]} 14. a3 {[%emt 0:00:23]} Rac8 {[%emt 0:09:23]} 15. Rac1 {[%emt 0:02:25]} Qb8 {[%emt 0:04:11]} 16. Qg3 {[%emt 0:01:08]} Rfe8 {[%emt 0:14:58]} 17. Bd3 {[%emt 0:01:52]} e5 {[%emt 0:05:45]} 18. Nd5 {[%emt 0:14:34]} Bxd5 {[%emt 0:00:45]} 19. exd5 {[%emt 0:02:50]} g6 {[%emt 0:08:14]} 20. Rce1 {[%emt 0:17:37]} Nh5 {[%emt 0:08:27]} 21. Qh3 {[%emt 0:04:35]} Qc7 {[%emt 0:00:36]} 22. f5 {[%emt 0:18:56]} Bf6 {[%emt 0:01:00]} 23. fxg6 {[%emt 0:01:34]} hxg6 {[%emt 0:00:21]} 24. Bf5 {[%emt 0:06:49]} gxf5 {[%emt 0:07:46]} 25. Qxh5 {[%emt 0:00:47]} f4 {[%emt 0:00:06]} 26. Qg4+ {[%emt 0:02:45]} Kf8 {[%emt 0:01:07]} 27. g3 {[%emt 0:03:22]} Qxc4 {[%emt 0:09:09]} 28. Qxd7 {[%emt 0:01:23]} Qxc2 {[%emt 0:00:09]} 29. Qxd6+ {[%emt 0:01:07]} Kg7 {[%emt 0:00:12]} 30. Rxf4 {[%emt 0:00:58]} Qg6 {[%emt 0:02:30]} 31. Rxf6 {[%emt 0:05:21]} Qxf6 {[%emt 0:00:06]} 32. Bxe5 {[%emt 0:00:10]} Rxe5 {[%emt 0:00:04]} 33. Qxe5 {[%emt 0:00:04]} Qxe5 {[%emt 0:00:06]} 34. Rxe5 {[%emt 0:00:04]} Rc3 {[%emt 0:00:06]} 35. a4 {[%emt 0:03:57]} Rc4 {[%emt 0:00:27]} 36. d6 {[%emt 0:00:48]} Rd4 {[%emt 0:00:19]} 37. a5 {[%emt 0:00:35]} Rxd6 {[%emt 0:00:42]} 38. axb6 {[%emt 0:00:35]} Rxb6 {[%emt 0:00:21]} 39. Re4 {[%emt 0:00:05]} Rb5 {[%emt 0:00:11]} 40. Kg2 {[%emt 0:00:16]} a5 {[%emt 0:00:11]} 41. bxa5 {[%emt 0:30:06]} Rxa5 {[%emt 0:30:03]} 42. Kf3 {[%emt 0:01:30]} Ra3+ {[%emt 0:05:12]} 43. Kf4 {[%emt 0:00:28]} Kg6 {[%emt 0:00:14]} 44. Rb4 {[%emt 0:00:17]} Ra1 {[%emt 0:01:40]} 45. Kg4 {[%emt 0:00:00]} f5+ {[%emt 0:00:00]} 46. Kf3 {[%emt 0:00:00]} Ra6 {[%emt 0:00:00]} 47. Kf4 {[%emt 0:00:00]} Rc6 {[%emt 0:00:00]} 48. Rd4 {[%emt 0:00:00]} Kf6 {[%emt 0:00:00]} 49. Ra4 {[%emt 0:00:00]} Rb6 {[%emt 0:00:00]} 50. Rd4 {[%emt 0:00:00]} Ra6 {[%emt 0:00:00]} 51. Rb4 {[%emt 0:00:00]} Rc6 {[%emt 0:00:00]} 52. Rb8 {[%emt 0:00:00]} Rc4+ {[%emt 0:00:00]} 53. Ke3 {[%emt 0:00:00]} Rc6 {[%emt 0:00:00]} 54. Rf8+ {[%emt 0:00:00]} Kg6 {[%emt 0:00:00]} 55. Rg8+ {[%emt 0:00:00]} Kf7 {[%emt 0:00:00]} 56. Rd8 {[%emt 0:00:00]} Kf6 {[%emt 0:00:00]} 57. Kd4 {[%emt 0:00:00]} Rc2 {[%emt 0:00:00]} 58. Rd6+ {[%emt 0:00:00]} Kg7 {[%emt 0:00:00]} 59. Rd7+ {[%emt 0:00:00]} Kg6 {[%emt 0:00:00]} 60. Rd6+ {[%emt 0:00:00]} Kg7 {[%emt 0:00:00]} 61. Ke5 {[%emt 0:00:00]} Rxh2 {[%emt 0:00:00]} 62. Kxf5 {[%emt 0:00:00]} Rh5+ {[%emt 0:00:00]} 63. Kf4 {[%emt 0:00:00]} Ra5 {[%emt 0:00:00]} 64. g4 {[%emt 0:00:00]} Rb5 {[%emt 0:00:00]} 65. Re6 {[%emt 0:00:00]} Ra5 {[%emt 0:00:00]} 66. g5 {[%emt 0:00:00]} Ra1 {[%emt 0:00:00]} 67. Re4 {[%emt 0:00:00]} Rf1+ {[%emt 0:00:00]} 68. Kg4 {[%emt 0:00:00]} Rg1+ {[%emt 0:00:00]} 69. Kf5 {[%emt 0:00:00]} Rf1+ {[%emt 0:00:00]} 70. Rf4 {[%emt 0:00:00]} Rxf4+ {[%emt 0:00:00]} 71. Kxf4 {[%emt 0:00:00]} 1/2-1/2

[Event "Schachfestival GM 2018"]
[Site "Lueneburg"]
[Date "2018.07.05"]
[Round "1"]
[White "Ewert, Hannes"]
[Black "Wachinger, Nikolas"]
[Result "1/2-1/2"]
[ECO "E06"]
[WhiteElo "2318"]
[BlackElo "2340"]
[Annotator "NA"]
[PlyCount "155"]
[EventDate "2018.07.05"]
[EventType "tourn"]
[EventCountry "GER"]
[SourceTitle "playchess.com"]
[Source "ChessBase"]
[SourceQuality "1"]
[TimeControl "40/5400+30:1800+30"]

1. d4 {[%emt 0:00:00]} Nf6 {[%emt 0:00:00]} 2. Nf3 {[%emt 0:00:00]} d5 {[%emt 0:00:13]} 3. c4 {[%emt 0:00:11]} e6 {[%emt 0:00:14]} 4. g3 {[%emt 0:01:05]} Be7 {[%emt 0:00:15]} 5. Bg2 {[%emt 0:01:15]} O-O {[%emt 0:00:14]} 6. O-O {[%emt 0:01:07]} dxc4 {[%emt 0:00:14]} 7. Qc2 {[%emt 0:01:21]} a6 {[%emt 0:00:10]} 8. Qxc4 {[%emt 0:01:38]} b5 {[%emt 0:00:10]} 9. Qc2 {[%emt 0:00:45]} Bb7 {[%emt 0:00:08]} 10. Nc3 {[%emt 0:07:35]} Nbd7 {[%emt 0:01:55]} 11. Rd1 {[%emt 0:01:00] E05: Open Catalan: 5 Nf3 Be7} c5 {[%emt 0:14:38]} (11... Qc8 12. Bf4 c5 13. dxc5 Qxc5 14. Ng5 Qc8 15. Bxb7 Qxb7 16. Nce4 Nxe4 17. Qxe4 Qxe4 18. Nxe4 Nf6 {½-½ (18) Iskandarov,M (2465)-Magalashvili,D (2522) Kahramanmaras 2018}) 12. dxc5 {[%emt 0:11:05]} Bxc5 {[%emt 0:02:45]} 13. Ne5 {[%emt 0:11:41]} Bxg2 {[%emt 0:01:07]} 14. Kxg2 {[%emt 0:00:20]} Qc7 {[%emt 0:01:18]} 15. Nxd7 {[%emt 0:00:58]} Nxd7 {[%emt 0:00:08]} 16. Bf4 $146 {[%emt 0:00:58]} ({Predecessor:} 16. Ne4 Rac8 17. Nxc5 Nxc5 {½-½ (29) Schell,W (2055)-Zschunke,W (2045) Bayern 1995}) 16... Qb7+ {[%emt 0:04:15]} 17. Qe4 {[%emt 0:00:24]} Qa7 {[%emt 0:00:24]} 18. Bd6 {[%emt 0:15:19]} Nf6 {[%emt 0:06:20]} 19. Qd3 {[%emt 0:04:35]} Rfc8 {[%emt 0:09:20]} 20. Bxc5 {[%emt 0:05:21]} Qxc5 {[%emt 0:01:44]} 21. a3 {[%emt 0:02:23]} Ng4 {[%emt 0:06:21]} 22. Qd4 {[%emt 0:10:00]} Ne5 {[%emt 0:06:56]} 23. a4 {[%emt 0:11:39]} b4 {[%emt 0:09:21]} 24. Na2 {[%emt 0:00:33]} Qxd4 {[%emt 0:01:34]} 25. Rxd4 {[%emt 0:00:06]} a5 {[%emt 0:00:04]} 26. Rc1 {[%emt 0:04:05]} h6 {[%emt 0:18:20]} 27. b3 {[%emt 0:02:54]} Rxc1 {[%emt 0:13:45]} 28. Nxc1 {[%emt 0:00:05]} Kf8 {[%emt 0:00:06]} 29. Re4 {[%emt 0:02:20]} f6 {[%emt 0:01:28]} (29... Nd7 $11 {remains equal.}) 30. f4 {[%emt 0:01:16]} Nd7 {[%emt 0:00:47]} 31. Rxe6 {[%emt 0:01:00]} Rc8 {[%emt 0:00:19]} 32. Nd3 {[%emt 0:00:42]} Rc3 {[%emt 0:00:18]} 33. Ra6 {[%emt 0:00:06]} Nc5 {[%emt 0:00:22]} 34. Nxc5 {[%emt 0:00:57]} Rxc5 {[%emt 0:00:01]} 35. Rd6 {[%emt 0:00:20]} Ke7 {[%emt 0:00:20]} 36. Rd3 {[%emt 0:00:02]} Ke6 {[%emt 0:00:12]} 37. Kf3 {[%emt 0:00:36]} f5 {[%emt 0:01:15]} 38. h3 {[%emt 0:00:53]} Rc1 {[%emt 0:01:04]} 39. Re3+ {[%emt 0:01:36]} Kf6 {[%emt 0:00:02]} 40. Rd3 {[%emt 0:00:07]} h5 {[%emt 0:01:00]} 41. Rd6+ {[%emt 0:05:08]} Ke7 {[%emt 0:01:49]} 42. Rd5 {[%emt 0:02:15]} Ke6 {[%emt 0:00:49]} 43. Re5+ {[%emt 0:06:02]} Kf6 {[%emt 0:00:02]} 44. Rxa5 {[%emt 0:00:57]} Rc3+ {[%emt 0:00:03]} 45. Kf2 {[%emt 0:00:27]} Rxb3 {[%emt 0:00:06]} 46. Rb5 {[%emt 0:00:17]} g6 {[%emt 0:00:44]} 47. a5 {[%emt 0:00:19]} Ra3 {[%emt 0:00:06]} 48. Rxb4 $14 {[%emt 0:00:21]} Rxa5 {[%emt 0:00:07]} 49. Rb6+ {[%emt 0:01:24]} Kf7 {[%emt 0:00:02]} 50. Kf3 {[%emt 0:00:51]} Ra3+ {[%emt 0:00:11]} 51. e3 {[%emt 0:00:23]} Rc3 {[%emt 0:00:07]} 52. Rb5 {[%emt 0:00:13]} Kf6 {[%emt 0:00:05]} 53. Re5 {[%emt 0:00:40]} Ra3 {[%emt 0:02:24]} 54. g4 {[%emt 0:01:59]} hxg4+ {[%emt 0:00:14]} 55. hxg4 {[%emt 0:00:01]} Ra1 {[%emt 0:00:51]} 56. g5+ {[%emt 0:00:15]} Kf7 {[%emt 0:00:07]} 57. Rb5 {[%emt 0:00:19]} Ra7 {[%emt 0:00:27]} 58. Rb6 {[%emt 0:00:45]} Ra2 {[%emt 0:00:42]} 59. Rb4 {[%emt 0:01:26]} Ke7 {[%emt 0:00:36]} 60. Rb3 {[%emt 0:01:01]} Kf7 {[%emt 0:00:45]} 61. e4 {[%emt 0:00:54]} fxe4+ {[%emt 0:00:07]} 62. Kxe4 {[%emt 0:00:03]} Ra4+ {[%emt 0:00:22]} 63. Kf3 {[%emt 0:00:41]} Rc4 {[%emt 0:00:15]} 64. Rb7+ {[%emt 0:01:02]} Kf8 {[%emt 0:00:04]} 65. Rb6 {[%emt 0:00:09]} Kf7 {[%emt 0:00:07]} 66. Rf6+ {[%emt 0:00:03]} Kg7 {[%emt 0:00:08]} 67. Re6 {[%emt 0:00:01]} Kf7 {[%emt 0:00:11]} 68. Re5 {[%emt 0:00:56]} Ra4 {[%emt 0:00:07]} 69. Re4 {[%emt 0:00:28]} Ra3+ {[%emt 0:00:07]} 70. Kg4 {[%emt 0:00:06]} Rb3 {[%emt 0:00:06]} 71. Ra4 {[%emt 0:00:07]} Rc3 {[%emt 0:00:10]} 72. Ra7+ {[%emt 0:00:33]} Kg8 {[%emt 0:00:26]} 73. Ra4 {[%emt 0:00:51]} Kg7 {[%emt 0:00:14]} 74. f5 {[%emt 0:00:33]} gxf5+ {[%emt 0:00:08]} 75. Kxf5 {[%emt 0:00:05]} Rc7 {[%emt 0:00:10]} 76. Ra6 {[%emt 0:00:36]} Rb7 {[%emt 0:00:02]} 77. Rg6+ {[%emt 0:00:34]} Kf7 {[%emt 0:00:08]} 78. Rf6+ {[%emt 0:00:31]} 1/2-1/2

[Event "Schachfestival GM 2018"]
[Site "Lueneburg"]
[Date "2018.07.05"]
[Round "2"]
[White "Vorobiov, Evgeny E"]
[Black "Wachinger, Nikolas"]
[Result "1/2-1/2"]
[ECO "A04"]
[WhiteElo "2564"]
[BlackElo "2340"]
[Annotator "ChessBase"]
[PlyCount "81"]
[EventDate "2018.07.05"]
[EventType "tourn"]
[EventCountry "GER"]
[SourceTitle "playchess.com"]
[Source "ChessBase"]
[SourceQuality "1"]
[TimeControl "40/5400+30:1800+30"]

1. Nf3 {[%emt 0:00:00]} c5 {[%emt 0:00:00]} 2. c4 {[%emt 0:01:17]} Nc6 {[%emt 0:00:00]} 3. e3 {[%emt 0:02:27]} Nf6 {[%emt 0:00:11]} 4. Be2 {[%emt 0:05:30]} g6 {[%emt 0:03:00]} 5. b3 {[%emt 0:01:05]} Bg7 {[%emt 0:00:28]} 6. Bb2 {[%emt 0:00:04]} O-O {[%emt 0:00:22]} 7. O-O {[%emt 0:00:03]} d6 {[%emt 0:05:32]} 8. Nc3 {[%emt 0:05:19]} a6 {[%emt 0:06:44]} 9. d4 {[%emt 0:06:28]} cxd4 {[%emt 0:00:51]} 10. exd4 {[%emt 0:03:45]} d5 {[%emt 0:04:05]} 11. h3 {[%emt 0:04:36]} Bf5 {[%emt 0:07:48]} 12. c5 {[%emt 0:04:07]} b6 {[%emt 0:08:09]} 13. Ne5 {[%emt 0:18:35]} Nxe5 {[%emt 0:10:59]} 14. dxe5 {[%emt 0:00:43]} Nd7 {[%emt 0:00:07]} 15. Nxd5 {[%emt 0:06:58]} Nxc5 {[%emt 0:01:41]} 16. b4 {[%emt 0:02:44]} Nd7 {[%emt 0:16:45]} 17. f4 {[%emt 0:06:30]} Be4 {[%emt 0:07:02]} 18. Qd4 {[%emt 0:04:47]} Nc5 {[%emt 0:11:14]} 19. bxc5 {[%emt 0:10:19]} Bxd5 {[%emt 0:01:35]} 20. cxb6 {[%emt 0:00:51]} Rb8 {[%emt 0:00:13]} 21. Ba3 {[%emt 0:01:54]} Qxb6 {[%emt 0:01:08]} 22. Qxb6 {[%emt 0:03:43]} Rxb6 {[%emt 0:00:03]} 23. Rfd1 {[%emt 0:00:44]} Be6 {[%emt 0:00:48]} 24. Bxe7 {[%emt 0:04:33]} Re8 {[%emt 0:00:32]} 25. Ba3 {[%emt 0:01:37]} f6 {[%emt 0:00:17]} 26. Rd6 {[%emt 0:00:43]} Rxd6 {[%emt 0:00:48]} 27. Bxd6 {[%emt 0:02:16]} fxe5 {[%emt 0:00:26]} 28. fxe5 {[%emt 0:00:16]} Bf7 {[%emt 0:00:55]} 29. a4 {[%emt 0:01:36]} a5 {[%emt 0:00:32]} 30. Bb5 {[%emt 0:00:42]} Bxe5 {[%emt 0:00:27]} 31. Bxe5 {[%emt 0:00:34]} Rxe5 {[%emt 0:00:02]} 32. Rc1 {[%emt 0:00:05]} Be8 {[%emt 0:02:23]} 33. Rc8 {[%emt 0:00:35]} Kf7 {[%emt 0:00:17]} 34. Rc7+ {[%emt 0:00:24]} Kf6 {[%emt 0:00:24]} 35. Bxe8 {[%emt 0:00:46]} Rxe8 {[%emt 0:00:03]} 36. Rxh7 {[%emt 0:00:40]} Re4 {[%emt 0:00:08]} 37. Ra7 {[%emt 0:00:04]} Rxa4 {[%emt 0:00:05]} 38. Ra6+ {[%emt 0:00:33]} Kg5 {[%emt 0:00:34]} 39. Kf2 {[%emt 0:00:32]} Ra2+ {[%emt 0:00:16]} 40. Kf3 {[%emt 0:00:30]} Ra3+ {[%emt 0:00:40]} 41. Ke4 1/2-1/2

[Event "Schachfestival GM 2018"]
[Site "Lueneburg"]
[Date "2018.07.05"]
[Round "2"]
[White "Malakhatko, Vadim"]
[Black "Ewert, Hannes"]
[Result "1-0"]
[ECO "E37"]
[WhiteElo "2499"]
[BlackElo "2318"]
[Annotator "ChessBase"]
[PlyCount "95"]
[EventDate "2018.07.05"]
[EventType "tourn"]
[EventCountry "GER"]
[SourceTitle "playchess.com"]
[Source "ChessBase"]
[SourceQuality "1"]
[TimeControl "40/5400+30:1800+30"]

1. d4 {[%emt 0:04:19]} Nf6 {[%emt 0:00:00]} 2. c4 {[%emt 0:00:16]} e6 {[%emt 0:00:07]} 3. Nc3 {[%emt 0:00:10]} Bb4 {[%emt 0:00:23]} 4. Qc2 {[%emt 0:00:08]} d5 {[%emt 0:00:22]} 5. a3 {[%emt 0:00:17]} Bxc3+ {[%emt 0:00:07]} 6. Qxc3 {[%emt 0:00:06]} Ne4 {[%emt 0:00:07]} 7. Qc2 {[%emt 0:02:11]} c5 {[%emt 0:00:10]} 8. dxc5 {[%emt 0:01:27]} Nc6 {[%emt 0:00:22]} 9. Nf3 {[%emt 0:00:59]} Qa5+ {[%emt 0:00:40]} 10. Bd2 {[%emt 0:00:09]} Nxd2 {[%emt 0:00:54]} 11. Qxd2 {[%emt 0:00:29]} dxc4 {[%emt 0:00:33]} 12. Qxa5 {[%emt 0:02:12]} Nxa5 {[%emt 0:00:09]} 13. e3 {[%emt 0:00:08]} Nb3 {[%emt 0:08:12]} 14. Rd1 {[%emt 0:00:33]} Nxc5 {[%emt 0:00:25]} 15. Bxc4 {[%emt 0:00:07]} Ke7 {[%emt 0:02:26]} 16. b4 {[%emt 0:04:26]} Nd7 {[%emt 0:05:06]} 17. Rc1 {[%emt 0:03:57]} Nb6 {[%emt 0:13:25]} 18. Bd3 {[%emt 0:00:14]} Bd7 {[%emt 0:01:32]} 19. Ne5 {[%emt 0:03:02]} Rac8 {[%emt 0:14:48]} 20. Ke2 {[%emt 0:00:33]} h6 {[%emt 0:07:50]} 21. Nxd7 {[%emt 0:00:45]} Nxd7 {[%emt 0:04:40]} 22. Be4 {[%emt 0:00:24]} b6 {[%emt 0:01:00]} 23. Bb7 {[%emt 0:00:05]} Rxc1 {[%emt 0:01:23]} 24. Rxc1 {[%emt 0:00:10]} Rb8 {[%emt 0:00:24]} 25. Ba6 {[%emt 0:01:53]} Kd8 {[%emt 0:07:32]} 26. f4 {[%emt 0:06:34]} Nf6 {[%emt 0:04:45]} 27. Kd3 {[%emt 0:12:48]} Nd5 {[%emt 0:06:16]} 28. Kd4 {[%emt 0:00:44]} Nc7 {[%emt 0:00:49]} 29. Bc4 {[%emt 0:08:34]} Kd7 {[%emt 0:09:05]} 30. e4 {[%emt 0:00:54]} Rd8 {[%emt 0:03:59]} 31. Ke3 {[%emt 0:04:09]} f6 {[%emt 0:03:09]} 32. h4 {[%emt 0:01:13]} Kd6 {[%emt 0:04:47]} 33. Bb3 {[%emt 0:03:28]} e5 {[%emt 0:00:27]} 34. Ba4 {[%emt 0:07:25]} exf4+ {[%emt 0:00:05]} 35. Kxf4 {[%emt 0:00:07]} Ne6+ {[%emt 0:00:28]} 36. Kf5 {[%emt 0:00:23]} Ke7 {[%emt 0:00:27]} 37. Rc3 {[%emt 0:03:40]} Rd2 {[%emt 0:00:48]} 38. g3 {[%emt 0:00:06]} Rf2+ {[%emt 0:00:39]} 39. Kg6 {[%emt 0:00:17]} Rg2 {[%emt 0:00:35]} 40. Kh7 {[%emt 0:05:24]} g5 {[%emt 0:00:20]} 41. h5 {[%emt 0:30:23]} Rh2 {[%emt 0:03:48]} 42. Kxh6 {[%emt 0:00:00]} Rh3 {[%emt 0:01:26]} 43. Bd1 {[%emt 0:00:00]} Rh1 {[%emt 0:04:46]} 44. Bg4 {[%emt 0:00:00]} Re1 {[%emt 0:00:46]} 45. Bf5 {[%emt 0:00:00]} a5 {[%emt 0:02:23]} 46. Rc6 {[%emt 0:00:00]} Nd4 {[%emt 0:00:25]} 47. Rc7+ {[%emt 0:00:00]} Kf8 {[%emt 0:00:49]} 48. Kg6 {[%emt 0:00:00]} 1-0

[Event "Schachfestival GM 2018"]
[Site "Lueneburg"]
[Date "2018.07.05"]
[Round "2"]
[White "Lubbe, Nikolas"]
[Black "Winterberg, Lukas"]
[Result "0-1"]
[ECO "A05"]
[WhiteElo "2463"]
[BlackElo "2372"]
[Annotator "ChessBase"]
[PlyCount "36"]
[EventDate "2018.07.05"]
[EventType "tourn"]
[EventCountry "GER"]
[SourceTitle "playchess.com"]
[Source "ChessBase"]
[SourceQuality "1"]
[TimeControl "40/5400+30:1800+30"]

1. Nf3 {[%emt 0:00:00]} Nf6 {[%emt 0:00:00]} 2. c4 {[%emt 0:00:15]} e6 {[%emt 0:00:06]} 3. e3 {[%emt 0:01:55]} d5 {[%emt 0:00:32]} 4. b3 {[%emt 0:00:16]} Be7 {[%emt 0:00:27]} 5. Bb2 {[%emt 0:00:16]} O-O {[%emt 0:00:35]} 6. Nc3 {[%emt 0:00:56]} Nc6 {[%emt 0:08:01]} 7. d4 {[%emt 0:03:30]} b6 {[%emt 0:05:04]} 8. cxd5 {[%emt 0:08:07]} Nxd5 {[%emt 0:11:58]} 9. Be2 {[%emt 0:03:13]} Ncb4 {[%emt 0:05:20]} 10. Nxd5 {[%emt 0:08:34]} Nxd5 {[%emt 0:00:19]} 11. O-O {[%emt 0:00:46]} c5 {[%emt 0:00:39]} 12. dxc5 {[%emt 0:06:54]} Bxc5 {[%emt 0:00:24]} 13. a3 Bb7 14. b4 {[%emt 0:09:29]} Be7 {[%emt 0:03:13]} 15. Qb3 {[%emt 0:01:27]} Bf6 {[%emt 0:02:25]} 16. Ne5 {[%emt 0:02:48]} Bxe5 {[%emt 0:05:48]} 17. Bxe5 {[%emt 0:00:18]} Qg5 {[%emt 0:00:16]} 18. f4 {[%emt 0:05:23]} Nxf4 {[%emt 0:01:33]} 0-1

[Event "Schachfestival GM 2018"]
[Site "Lueneburg"]
[Date "2018.07.05"]
[Round "2"]
[White "Drozdowski, Kacper"]
[Black "Karpatchev, Aleksandr"]
[Result "1-0"]
[ECO "A28"]
[WhiteElo "2455"]
[BlackElo "2469"]
[Annotator "ChessBase"]
[PlyCount "89"]
[EventDate "2018.07.05"]
[EventType "tourn"]
[EventCountry "GER"]
[SourceTitle "playchess.com"]
[Source "ChessBase"]
[SourceQuality "1"]
[TimeControl "40/5400+30:1800+30"]

1. c4 {[%emt 0:00:00]} e5 {[%emt 0:02:34]} 2. Nc3 {[%emt 0:00:00]} Nf6 {[%emt 0:00:07]} 3. Nf3 {[%emt 0:00:00]} Nc6 {[%emt 0:00:09]} 4. a3 {[%emt 0:00:00]} g6 {[%emt 0:00:36]} 5. e3 {[%emt 0:00:50]} Bg7 {[%emt 0:00:12]} 6. d4 exd4 7. exd4 {[%emt 0:00:30]} d6 {[%emt 0:12:16]} 8. d5 {[%emt 0:00:25]} Ne7 {[%emt 0:02:10]} 9. h3 {[%emt 0:00:08]} O-O {[%emt 0:00:29]} 10. Be2 {[%emt 0:01:35]} Re8 {[%emt 0:08:02]} 11. O-O {[%emt 0:00:11]} h6 {[%emt 0:02:22]} 12. Re1 {[%emt 0:00:21]} a6 {[%emt 0:03:24]} 13. Bf1 {[%emt 0:05:34]} Bd7 {[%emt 0:02:06]} 14. a4 {[%emt 0:04:11]} g5 {[%emt 0:13:01]} 15. Nd4 {[%emt 0:10:01]} Ng6 {[%emt 0:06:18]} 16. Rxe8+ {[%emt 0:04:46]} Qxe8 {[%emt 0:00:43]} 17. g3 {[%emt 0:04:03]} Ne4 {[%emt 0:05:12]} 18. Nxe4 {[%emt 0:08:37]} Qxe4 {[%emt 0:01:09]} 19. Be3 {[%emt 0:01:21]} Ne5 {[%emt 0:04:10]} 20. Bg2 {[%emt 0:22:54]} Qd3 {[%emt 0:01:51]} 21. Qxd3 {[%emt 0:02:07]} Nxd3 {[%emt 0:00:02]} 22. b3 {[%emt 0:00:48]} a5 {[%emt 0:11:24]} 23. Rb1 {[%emt 0:03:42]} Bxd4 {[%emt 0:09:20]} 24. Bxd4 {[%emt 0:00:08]} Bf5 {[%emt 0:00:04]} 25. Rd1 {[%emt 0:10:21]} b6 {[%emt 0:01:53]} 26. g4 {[%emt 0:04:05]} Bg6 {[%emt 0:00:14]} 27. Bf1 {[%emt 0:01:18]} Nb4 {[%emt 0:03:44]} 28. h4 {[%emt 0:03:47]} Re8 {[%emt 0:03:14]} 29. hxg5 {[%emt 0:00:23]} hxg5 {[%emt 0:00:03]} 30. Bf6 {[%emt 0:01:02]} Re4 {[%emt 0:07:15]} 31. f3 {[%emt 0:00:50]} Rf4 {[%emt 0:00:04]} 32. Bd8 {[%emt 0:01:29]} Rxf3 {[%emt 0:00:32]} 33. Bxc7 {[%emt 0:01:29]} Rg3+ {[%emt 0:00:18]} 34. Kh2 {[%emt 0:01:29]} Rxb3 {[%emt 0:01:12]} 35. Bxd6 {[%emt 0:00:08]} Na6 {[%emt 0:00:26]} 36. Be7 {[%emt 0:01:33]} Nc5 {[%emt 0:00:38]} 37. d6 {[%emt 0:01:27]} Nd7 {[%emt 0:00:24]} 38. c5 {[%emt 0:03:55]} Rb2+ {[%emt 0:00:39]} 39. Kg3 {[%emt 0:01:33]} Rb3+ {[%emt 0:00:25]} 40. Kh2 {[%emt 0:00:26]} Rb2+ {[%emt 0:00:36]} 41. Kg3 {[%emt 0:32:15]} Rb3+ {[%emt 0:03:52]} 42. Kf2 {[%emt 0:00:00]} Rb2+ {[%emt 0:03:02]} 43. Ke1 {[%emt 0:00:00]} bxc5 {[%emt 0:00:43]} 44. Bb5 {[%emt 0:00:00]} Ne5 {[%emt 0:00:32]} 45. Rd5 {[%emt 0:00:00]} 1-0